bitfinex-derivatives/quotes_ETHF0:USTF0_20241023
["timestamp","ask_amount","ask_price","bid_price","bid_amount"]
[1729701211582,4.54624428,2516.8,2516.7,0.3976]
[1729701211880,3.2078,2517.1,2516.7,3.9736]
[1729701212181,4.14390642,2517.0,2516.4,3.2078]
[1729701212379,3.2078,2516.8,2516.4,0.39765]
[1729701212580,0.39763,2516.6,2516.5,40.8]
[1729701212882,4.14390642,2516.7,2516.5,40.8]
[1729701213184,4.14390642,2516.7,2516.1,0.99425]
[1729701213485,3.2078,2517.4,2517.3,0.39751]
[1729701213684,3.2078,2517.4,2517.3,41.19751]
[1729701213992,1.8279,2517.6,2517.3,44.7728]
[1729701214285,2.22536,2517.6,2517.5,0.39748]
[1729701214487,4.9901,2517.9,2517.3,40.8]
[1729701214780,4.9901,2517.9,2517.3,44.0078]
[1729701214974,4.9901,2517.9,2517.3,40.8]
[1729701215478,3.2078,2517.9,2517.8,0.39743]
[1729701215779,3.2078,2517.9,2517.3,40.8]
[1729701215780,3.60523,2517.9,2517.3,40.8]
[1729701216085,0.39744,2517.8,2517.6,0.39746]
[1729701216380,3.2078,2517.9,2517.3,40.8]
[1729701216586,0.39745,2517.7,2517.5,0.39747]
[1729701216885,0.39745,2517.7,2517.3,40.8]
[1729701216886,3.60523,2517.9,2517.3,40.8]
[1729701217382,0.39743,2517.8,2517.6,0.39746]
[1729701217583,3.2078,2517.9,2517.3,44.0078]
[1729701217783,3.2078,2517.9,2517.4,0.99373]
[1729701218085,0.39736,2518.3,2518.1,0.39737]
[1729701218279,1.7823,2518.6,2517.8,3.2078]
[1729701218480,0.39734,2518.4,2518.2,0.39736]
[1729701218677,4.27833224,2518.5,2518.4,0.39734]
[1729701218880,1.7823,2518.6,2517.9,0.99353]
[1729701219080,1.7823,2518.6,2518.1,4.20126]
[1729701219283,3.2078,2518.7,2518.6,0.39731]
[1729701219484,3.2078,2519.3,2518.6,3.9704]
[1729701219688,3.2078,2519.3,2519.2,0.39721]
[1729701220082,7.69806282,2519.3,2519.2,0.39721]
[1729701220384,7.69806282,2519.3,2519.0,0.39723]
[1729701220385,0.3972,2519.3,2519.0,0.39723]
[1729701220579,0.3972,2519.3,2518.7,44.0078]
[1729701220580,0.39723,2519.1,2518.7,44.0078]
[1729701220783,0.39722,2519.2,2518.9,0.39725]
[1729701221086,7.69806282,2519.3,2519.0,0.39724]
[1729701221284,8.09526282,2519.3,2518.7,40.8]
[1729701221480,7.69806282,2519.3,2518.7,40.8]
[1729701221679,8.09527282,2519.3,2519.0,0.39723]
[1729701221881,7.69806282,2519.3,2519.1,0.39722]
[1729701222181,7.69806282,2519.3,2518.9,0.39725]
[1729701222382,0.39725,2519.0,2518.8,0.39727]
[1729701222691,4.51849064,2518.9,2518.7,41.19728]
[1729701222987,3.2078,2519.3,2518.8,0.39727]
[1729701222988,0.39725,2519.0,2518.8,0.39727]
[1729701223286,3.2078,2519.3,2518.3,6.09376]
[1729701223683,0.39726,2518.9,2518.4,0.39734]
[1729701223983,0.39723,2519.1,2518.8,0.39727]
[1729701224486,4.73574653,2519.0,2518.8,0.39727]
[1729701224692,4.33849653,2519.0,2518.4,40.8]
[1729701224882,0.39724,2519.0,2518.8,0.39726]
[1729701225082,3.2078,2519.3,2518.4,40.8]
[1729701225281,0.3973,2518.7,2518.4,0.39733]
[1729701225585,0.39737,2518.3,2518.0,3.60519]
[1729701225787,4.77230587,2518.6,2518.1,0.39737]
[1729701225788,0.39734,2518.4,2518.1,0.39737]
[1729701225984,0.57121587,2518.6,2518.0,3.2078]
[1729701226189,2.3377,2518.7,2518.4,0.39733]
[1729701226488,0.39732,2518.6,2518.0,3.2078]
[1729701226687,1.9404,2518.7,2518.0,3.2078]
[1729701226893,3.60507,2518.9,2518.7,0.39728]
[1729701227093,0.99301,2519.3,2518.6,0.3973]
[1729701227094,0.39728,2518.8,2518.6,0.3973]
[1729701227384,4.53940298,2518.8,2518.0,4.3]
[1729701227593,0.39728,2518.8,2518.6,0.3973]
[1729701228293,4.29346448,2518.7,2518.6,0.3973]
[1729701228483,3.2078,2518.9,2518.2,3.2078]
[1729701228682,3.2078,2518.9,2518.8,0.39727]
[1729701229893,0.39724,2519.1,2518.5,0.99329]
[1729701230089,1.8903,2519.2,2518.3,5.29337]
[1729701230290,4.59833494,2519.1,2518.5,0.99331]
[1729701230592,4.99557494,2519.1,2518.9,0.39725]
[1729701230793,3.2078,2519.3,2519.0,0.39724]
[1729701230990,3.2078,2519.3,2519.2,0.39721]
[1729701231298,3.2078,2519.3,2519.2,41.19721]
[1729701231797,3.2078,2519.3,2519.2,45.16681]
[1729701231996,3.2078,2519.3,2519.2,41.19721]
[1729701232691,0.39716,2519.5,2519.4,0.39718]
[1729701232897,0.39716,2519.5,2519.3,0.39719]
[1729701233201,3.2078,2519.6,2519.2,40.8]
[1729701233395,7.0278,2519.6,2518.5,3.82]
[1729701233700,5.13909897,2519.5,2518.5,3.82]
[1729701233900,0.39722,2519.2,2519.0,0.39724]
[1729701234498,4.14617897,2519.5,2519.0,3.9696]
[1729701234695,3.2078,2519.6,2519.0,3.82]
[1729701234696,3.60496,2519.6,2519.0,3.82]
[1729701234894,3.2078,2519.6,2519.0,3.82]
[1729701235095,3.60496,2519.6,2519.5,0.39716]
[1729701235595,3.2078,2519.6,2519.5,0.39716]
[1729701236203,3.2078,2519.6,2519.5,8.18596]
[1729701237205,3.2078,2519.9,2519.8,0.39712]
[1729701237506,3.2078,2519.9,2519.8,41.19712]
[1729701237700,3.6049,2519.9,2519.8,40.8]
[1729701237892,0.39716,2519.6,2519.4,0.39718]
[1729701238094,8.78281149,2519.9,2519.0,3.82]
[1729701238296,0.3972,2519.3,2519.1,3.2078]
[1729701238499,3.2078,2519.6,2519.1,44.0078]
[1729701238693,0.3972,2519.4,2519.2,0.39721]
[1729701238895,3.2078,2519.6,2519.1,40.8]
[1729701239102,0.39717,2519.5,2519.1,40.8]
[1729701239296,0.39717,2519.5,2519.4,0.39718]
[1729701240194,0.39717,2519.5,2519.1,44.0078]
[1729701240397,3.2078,2519.6,2519.2,3.82]
[1729701240709,0.39712,2519.8,2519.6,0.39714]
[1729701240998,0.39712,2519.8,2519.3,0.99301]
[1729701241200,0.39712,2519.8,2519.7,0.39714]
[1729701241400,3.2078,2519.9,2519.2,3.82]
[1729701241603,0.39715,2519.7,2519.5,0.39716]
[1729701241801,0.39714,2519.7,2519.6,0.39715]
[1729701242112,3.2078,2519.9,2519.8,0.39712]
[1729701242295,3.6049,2519.9,2519.7,0.39712]
[1729701242608,0.3971,2520.0,2519.6,3.82]
[1729701242906,3.60487,2520.2,2520.0,0.39708]
[1729701243101,3.2078,2520.2,2520.1,0.39707]
[1729701243804,1.8248,2520.5,2520.4,0.39703]
[1729701244003,3.2078,2520.6,2520.5,0.39701]
[1729701244301,3.2078,2520.9,2520.8,0.39696]
[1729701244501,3.2078,2520.9,2520.8,41.19696]
[1729701244809,5.08866,2521.5,2520.9,0.99238]
[1729701244810,4.0965,2521.5,2520.9,0.99238]
[1729701245003,3.2078,2521.7,2521.3,3.82]
[1729701245194,0.3969,2521.3,2521.0,4.21692]
[1729701245506,4.2057871,2521.2,2521.0,3.82]
[1729701245700,4.2057871,2521.2,2521.1,0.39692]
[1729701245905,3.2078,2521.7,2521.2,0.39689]
[1729701245906,0.39688,2521.4,2521.2,0.39689]
[1729701246103,3.2078,2521.7,2521.0,3.82]
[1729701246296,4.0965,2522.0,2521.0,3.82]
[1729701246297,4.90776895,2521.6,2521.4,0.39686]
[1729701246502,0.39686,2521.5,2521.3,0.39688]
[1729701246808,3.2078,2521.5,2521.4,0.39686]
[1729701246995,3.2078,2521.9,2521.5,0.39685]
[1729701247200,3.6046,2521.9,2521.7,0.39682]
[1729701247400,7.5398869,2521.9,2521.7,0.39681]
[1729701247596,7.5398869,2521.9,2521.3,7.0278]
[1729701247597,3.2078,2521.9,2521.3,7.0278]
[1729701247807,4.19981,2521.9,2520.9,8.02018]
[1729701248108,4.3320869,2521.8,2521.7,3.82]
[1729701248310,3.2078,2521.9,2521.8,0.39681]
[1729701248607,3.9636,2522.5,2521.8,3.9656]
[1729701248905,0.39674,2522.3,2522.0,0.39677]
[1729701249113,4.27660948,2522.4,2521.5,3.2078]
[1729701249411,0.39681,2521.8,2521.3,0.39689]
[1729701249598,0.39681,2521.8,2521.5,0.39685]
[1729701249801,0.39681,2521.8,2521.2,7.0278]
[1729701250007,0.39681,2521.8,2521.6,0.39684]
[1729701250208,3.2078,2522.0,2521.3,40.8]
[1729701250511,4.34984913,2521.9,2521.6,0.39683]
[1729701250710,0.39681,2521.8,2521.6,0.39683]
[1729701250907,4.34984913,2521.9,2521.4,3.82]
[1729701251111,4.34984913,2521.9,2521.2,7.0278]
[1729701251313,4.38472619,2521.7,2521.4,3.82]
[1729701251605,0.39682,2521.8,2521.4,3.82]
[1729701251807,3.2078,2522.0,2521.4,3.82]
[1729701252004,4.78155619,2521.7,2521.2,7.0278]
[1729701252305,0.39687,2521.6,2521.4,3.82]
[1729701252517,3.2078,2521.7,2521.2,47.8278]
[1729701252810,0.39691,2521.3,2521.2,3.2078]
[1729701253106,8.01057639,2521.3,2520.8,0.39699]
[1729701253304,7.61365639,2521.3,2520.7,3.82]
[1729701253809,0.39693,2521.2,2520.8,0.39697]
[1729701254109,4.56137696,2521.1,2520.7,3.82]
[1729701254499,3.2078,2521.3,2521.0,0.39696]
[1729701254500,4.56137696,2521.2,2521.0,0.39696]
[1729701254702,3.2078,2521.3,2521.0,0.39695]
[1729701254901,3.60471,2521.3,2521.0,0.39695]
[1729701255101,0.39693,2521.2,2520.7,3.82]
[1729701255303,3.2078,2521.3,2521.0,0.39695]
[1729701255509,0.39691,2521.4,2520.5,40.8]
[1729701255510,5.53887,2521.6,2520.9,3.82]
[1729701255717,5.142,2521.6,2521.2,3.82]
[1729701255910,3.2078,2521.5,2521.3,0.3969]
[1729701256110,3.2078,2521.5,2521.2,3.82]
[1729701256111,1.9342,2521.6,2521.5,0.39688]
[1729701256313,1.9125,2521.8,2521.4,3.82]
[1729701256507,3.2078,2521.9,2521.8,0.39683]
[1729701257208,3.60463,2521.9,2521.6,0.39685]
[1729701257410,3.60463,2521.9,2521.7,0.39684]
[1729701257411,3.2078,2521.9,2521.7,0.39684]
[1729701257711,3.2078,2521.9,2521.8,0.39683]
[1729701258312,3.2078,2522.2,2522.1,0.39678]
[1729701258609,2.0828,2522.5,2522.4,0.39674]
[1729701258806,2.0828,2522.5,2522.0,3.82]
[1729701259007,2.0828,2522.5,2522.3,0.39675]
[1729701259213,2.0828,2522.5,2522.4,0.39674]
[1729701259518,3.2078,2522.7,2522.5,0.39671]
[1729701259519,3.60449,2522.7,2522.5,0.39671]
[1729701259815,4.29592338,2522.6,2522.2,3.82]
[1729701260209,4.29592338,2522.6,2522.1,40.8]
[1729701260417,0.39675,2522.4,2522.1,40.8]
[1729701260607,0.39673,2522.5,2522.2,0.39676]
[1729701261007,0.39673,2522.5,2522.3,0.39675]
[1729701261208,0.39673,2522.5,2522.1,40.8]
[1729701261414,4.69263338,2522.6,2522.3,0.39674]
[1729701261615,4.29592338,2522.6,2522.1,40.8]
[1729701261922,0.39671,2522.6,2522.4,0.39673]
[1729701262508,3.2078,2522.7,2522.6,0.39671]
[1729701263020,3.60446,2523.0,2522.2,0.99193]
[1729701263228,3.60446,2523.0,2522.7,0.39668]
[1729701263417,3.2078,2523.0,2522.1,44.0078]
[1729701263621,0.39669,2522.7,2522.5,0.39672]
[1729701263917,4.49972007,2522.9,2522.1,44.0078]
[1729701264314,0.3967,2522.7,2522.4,0.39673]
[1729701264518,0.39671,2522.6,2522.1,40.8]
[1729701264734,3.6045,2522.7,2522.4,0.39673]
[1729701265019,3.6045,2522.7,2522.5,0.39671]
[1729701265223,3.6045,2522.7,2522.4,0.39672]
[1729701265427,4.51256011,2522.6,2522.1,40.8]
[1729701265922,0.39674,2522.5,2522.2,0.39676]
[1729701266115,4.51256011,2522.6,2522.1,40.8]
[1729701266312,0.39675,2522.4,2522.2,0.39676]
[1729701266511,0.39673,2522.5,2522.2,0.39676]
[1729701266812,0.39673,2522.5,2522.1,40.8]
[1729701266813,0.39673,2522.5,2522.3,0.39675]
[1729701267210,0.39673,2522.5,2522.1,40.8]
[1729701267211,4.51256011,2522.6,2522.5,0.39672]
[1729701267414,3.2078,2522.7,2522.6,0.39671]
[1729701268713,3.2078,2523.0,2522.8,0.39666]
[1729701268907,3.2078,2523.0,2522.7,0.39668]
[1729701268908,0.39666,2522.9,2522.7,0.39668]
[1729701269112,3.2078,2523.0,2522.3,4.29]
[1729701269316,3.2078,2522.6,2521.9,4.29]
[1729701269614,3.2078,2522.6,2522.5,0.39672]
[1729701270023,3.2078,2522.6,2522.5,4.36072]
[1729701270523,1.8935,2523.2,2522.8,0.39667]
[1729701270524,3.2078,2522.9,2522.8,0.39667]
[1729701271617,3.60447,2522.9,2522.7,0.39669]
[1729701272327,3.2078,2522.9,2522.7,0.39669]
[1729701272524,3.2078,2522.9,2522.3,2.0463]
[1729701272730,3.2078,2522.9,2522.8,0.39668]
[1729701273223,5.1013,2523.2,2522.4,4.19966]
[1729701273717,5.1013,2523.2,2522.4,3.2078]
[1729701273718,3.2078,2522.9,2522.4,3.2078]
[1729701273925,3.60452,2522.6,2522.4,0.39674]
[1729701274320,3.964,2522.5,2522.1,40.8]
[1729701274525,3.60457,2522.2,2522.1,40.8]
[1729701274726,0.39681,2522.0,2521.8,0.39683]
[1729701274924,0.39683,2521.9,2521.7,3.60464]
[1729701275126,0.39682,2521.9,2521.8,40.8]
[1729701275326,4.48840155,2521.8,2521.3,3.2078]
[1729701275627,0.39685,2521.7,2521.5,0.39687]
[1729701275817,0.39686,2521.7,2521.6,40.8]
[1729701276022,3.2078,2521.9,2521.6,41.19687]
[1729701276023,0.39685,2521.8,2521.6,41.19687]
[1729701276320,0.39685,2521.7,2521.6,40.8]
[1729701276628,0.39685,2521.7,2521.6,41.19686]
[1729701277317,0.39685,2521.7,2521.6,41.19687]
[1729701277820,0.3969,2521.4,2521.3,3.2078]
[1729701278019,0.39693,2521.2,2521.1,0.39693]
[1729701278331,0.39693,2521.2,2521.1,41.19693]
[1729701278627,5.1607,2521.6,2521.1,40.8]
[1729701278829,0.39691,2521.4,2521.2,0.39693]
[1729701279029,5.1607,2521.6,2521.1,40.8]
[1729701279234,0.39691,2521.4,2521.2,0.39692]
[1729701279526,5.1607,2521.6,2521.1,40.8]
[1729701279732,0.39689,2521.5,2521.3,0.39691]
[1729701279930,5.1607,2521.6,2521.1,40.8]
[1729701280224,5.1607,2521.6,2521.1,41.19693]
[1729701280225,0.39691,2521.4,2521.1,41.19693]
[1729701280422,5.1607,2521.6,2521.1,41.19693]
[1729701280624,0.39692,2521.3,2521.1,41.19693]
[1729701280823,0.39691,2521.4,2521.2,0.39693]
[1729701281023,0.39689,2521.5,2521.2,0.39691]
[1729701281228,0.39689,2521.5,2521.3,0.39691]
[1729701281530,0.3969,2521.5,2521.2,0.39692]
[1729701281729,5.1607,2521.6,2521.2,0.39692]
[1729701281930,5.1607,2521.6,2521.1,40.8]
[1729701282123,3.60472,2521.3,2521.1,40.8]
[1729701282319,0.39693,2521.2,2521.1,40.8]
[1729701282521,4.3507419,2521.2,2520.7,3.2078]
[1729701282823,4.3507419,2521.2,2520.4,3.81]
[1729701282824,0.39699,2520.8,2520.5,0.39703]
[1729701283129,3.2078,2521.0,2520.4,3.2078]
[1729701283328,3.2078,2521.0,2520.7,0.397]
[1729701283533,4.2613943,2520.9,2520.8,40.8]
[1729701283732,6.6918743,2520.9,2520.8,40.8]
[1729701284033,6.2948943,2520.9,2520.4,7.0178]
[1729701284229,2.0335,2520.9,2520.4,7.0178]
[1729701284533,0.39701,2520.7,2520.5,41.19704]
[1729701284727,0.39701,2520.7,2520.5,40.8]
[1729701284931,0.39702,2520.6,2520.5,40.8]
[1729701285121,4.66285267,2520.6,2520.5,40.8]
[1729701285518,0.39705,2520.5,2520.3,0.39707]
[1729701285733,0.39705,2520.5,2520.1,3.2078]
[1729701286025,0.39705,2520.5,2520.3,0.39707]
[1729701286329,4.78564107,2520.6,2520.3,0.39706]
[1729701287528,3.2078,2520.7,2520.4,3.81]
[1729701287723,3.60481,2520.7,2520.5,0.39703]
[1729701287923,3.2078,2520.7,2520.6,0.39702]
[1729701288533,3.2078,2520.7,2520.6,41.19702]
[1729701289428,3.60481,2520.7,2520.6,41.19702]
[1729701289731,3.2078,2520.7,2520.6,41.19702]
[1729701291332,3.2078,2520.7,2520.6,40.8]
[1729701291531,3.2078,2520.7,2520.6,41.19702]
[1729701292124,3.60481,2520.7,2520.6,40.8]
[1729701292329,4.95539,2521.1,2520.9,0.39698]
[1729701292330,3.2078,2521.0,2520.9,0.39698]
[1729701292729,3.2078,2521.0,2520.8,0.39699]
[1729701293428,3.60477,2521.0,2520.8,0.39699]
[1729701293635,3.60477,2521.0,2520.6,40.8]
[1729701293831,3.60477,2521.0,2520.7,0.39701]
[1729701294031,3.2078,2521.0,2520.6,40.8]
[1729701294233,3.2078,2521.0,2520.9,0.39698]
[1729701295340,2.0202,2521.1,2521.0,0.39696]
[1729701295935,2.41715,2521.1,2521.0,0.39696]
[1729701296634,2.0202,2521.1,2520.6,40.8]
[1729701296836,3.2078,2520.8,2520.6,40.8]
[1729701297033,3.2078,2520.8,2520.5,0.39703]
[1729701297034,0.39703,2520.6,2520.5,0.39703]
[1729701297430,4.53637432,2520.7,2520.6,0.39702]
[1729701297741,0.39701,2520.7,2520.6,0.39701]
[1729701297933,3.6048,2520.8,2520.7,0.39701]
[1729701298334,3.2078,2520.8,2520.5,40.8]
[1729701298540,0.39702,2520.7,2520.6,0.39702]
[1729701298745,4.6656325,2520.7,2520.6,0.39702]
[1729701299044,8.6328325,2520.7,2520.6,0.39702]
[1729701299235,4.6656325,2520.7,2520.6,0.39702]
[1729701299937,4.2686125,2520.7,2520.6,0.39702]
[1729701300438,3.2078,2520.8,2520.7,0.39701]
[1729701300640,5.7707,2521.5,2520.7,3.9672]
[1729701300641,3.2078,2521.4,2520.7,3.9672]
[1729701300849,3.2078,2521.4,2521.3,0.39691]
[1729701301137,7.8747047,2521.4,2521.3,0.39691]
[1729701301341,7.4778047,2521.4,2521.3,0.39691]
[1729701301547,7.8747047,2521.4,2521.3,0.39691]
[1729701302036,7.8747047,2521.4,2520.9,0.99244]
[1729701302037,0.39692,2521.3,2521.2,0.39692]
[1729701302234,3.2078,2521.4,2521.3,0.39691]
[1729701302831,3.6047,2521.4,2521.3,0.39691]
[1729701303235,3.2078,2521.4,2520.9,0.99244]
[1729701303441,0.39694,2521.2,2521.1,0.39693]
[1729701303747,8.03394228,2521.4,2521.3,0.39691]
[1729701303944,3.2078,2521.4,2521.3,0.39691]
[1729701306951,1.8992,2521.7,2521.6,0.39687]
[1729701306952,3.2078,2521.7,2521.6,0.39687]
[1729701307354,3.2078,2521.7,2521.6,48.97247]
[1729701308542,3.2078,2522.1,2522.0,0.3968]
[1729701308745,3.2078,2522.6,2522.5,0.39672]
[1729701309048,0.39673,2522.5,2522.4,0.39674]
[1729701309244,0.39672,2522.5,2522.4,0.39674]
[1729701309448,3.2078,2522.6,2522.0,3.2078]
[1729701309752,4.13345345,2522.5,2521.7,8.8634]
[1729701309956,0.3968,2522.0,2521.8,0.39684]
[1729701310141,0.39683,2521.9,2521.7,5.45024]
[1729701310342,0.99192,2522.3,2521.7,3.2078]
[1729701310343,4.19972,2522.3,2521.7,3.2078]
[1729701310541,0.39681,2522.0,2521.8,0.39684]
[1729701310749,4.1411052,2522.3,2521.7,3.2078]
[1729701311457,0.39683,2521.9,2521.7,3.60465]
[1729701311657,7.3489052,2522.3,2521.9,0.39682]
[1729701311848,2.86928,2522.4,2521.7,3.2078]
[1729701312045,4.1511528,2522.1,2521.7,3.2078]
[1729701312247,0.39682,2522.0,2521.8,0.39683]
[1729701312552,4.45278056,2522.0,2521.7,3.2078]
[1729701312752,0.39684,2521.8,2521.7,3.2078]
[1729701313257,0.39684,2521.8,2521.3,0.39691]
[1729701313258,0.39688,2521.6,2521.4,0.39689]
[1729701313451,1.7558,2521.7,2521.1,3.2078]
[1729701313648,1.7558,2521.7,2521.6,0.39687]
[1729701313951,1.7943,2521.9,2521.8,0.39684]
[1729701314345,3.2078,2522.0,2521.9,0.39682]
[1729701314545,3.60461,2522.0,2521.9,40.8]
[1729701314743,1.7558,2522.3,2521.9,41.19682]
[1729701314948,0.39677,2522.2,2521.9,41.19681]
[1729701315247,0.3968,2522.1,2521.9,40.8]
[1729701315458,0.3968,2522.0,2521.9,41.19682]
[1729701315653,0.3968,2522.1,2522.0,0.39679]
[1729701315859,0.3968,2522.0,2521.9,41.19682]
[1729701316752,0.3968,2522.1,2522.0,0.3968]
[1729701316956,0.3968,2522.0,2521.9,41.1968]
[1729701317156,1.7558,2522.3,2521.9,40.8]
[1729701317660,0.3968,2522.0,2521.9,40.8]
[1729701317854,0.3968,2522.0,2521.9,41.19682]
[1729701318057,0.3968,2522.0,2521.9,40.8]
[1729701318258,0.3968,2522.0,2521.9,41.19682]
[1729701318762,1.7558,2522.3,2521.9,40.8]
[1729701319060,0.39684,2521.8,2521.7,0.39684]
[1729701319359,0.39688,2521.5,2521.4,3.2078]
[1729701319556,0.39688,2521.5,2521.4,44.0078]
[1729701319761,1.8628,2521.7,2521.4,40.8]
[1729701319953,0.39688,2521.6,2521.4,40.8]
[1729701320157,4.33417768,2521.6,2521.5,0.39688]
[1729701320358,2.25966,2521.7,2521.4,40.8]
[1729701320553,2.25966,2521.7,2521.6,0.39687]
[1729701320758,3.2078,2521.9,2521.6,3.1]
[1729701321051,5.36037,2522.3,2521.8,3.49684]
[1729701321253,4.9636,2522.3,2521.8,3.49684]
[1729701321455,4.9636,2522.3,2522.2,0.39677]
[1729701321660,0.39678,2522.2,2522.1,0.39678]
[1729701322159,3.2078,2522.3,2522.2,0.39677]
[1729701322351,3.60456,2522.3,2522.2,0.39677]
[1729701322551,3.2078,2522.3,2522.2,0.39677]
[1729701323668,2.1192,2522.7,2522.6,0.39671]
[1729701323965,10.43756979,2522.7,2522.6,0.39671]
[1729701324164,6.07686979,2522.7,2522.6,0.39671]
[1729701324350,4.9744,2522.8,2522.4,0.99185]
[1729701324351,4.9744,2522.8,2522.7,0.39669]
[1729701324550,3.2078,2522.8,2522.7,0.39669]
[1729701324955,3.2078,2522.8,2522.7,41.19669]
[1729701325459,3.2078,2523.1,2522.7,40.8]
[1729701325654,0.39667,2522.9,2522.8,0.39667]
[1729701325854,0.39668,2522.8,2522.7,41.19668]
[1729701326150,0.39668,2522.8,2522.7,40.8]
[1729701326351,0.39668,2522.8,2522.7,41.19669]
[1729701326556,8.57806347,2523.1,2522.7,40.8]
[1729701326863,8.57806347,2523.1,2522.9,0.39666]
[1729701326864,0.39665,2523.0,2522.9,0.39666]
[1729701327058,3.60444,2523.1,2523.0,0.39665]
[1729701327266,0.39664,2523.1,2523.0,0.39665]
[1729701327456,6.7753,2523.4,2522.7,41.79173]
[1729701327656,0.39661,2523.3,2523.2,0.39661]
[1729701327850,4.16549992,2523.3,2523.2,0.39661]
[1729701328059,4.56209992,2523.3,2523.2,0.39661]
[1729701328360,4.16549992,2523.3,2523.2,0.39661]
[1729701328657,4.16549992,2523.3,2522.7,44.99953]
[1729701328861,4.16549992,2523.3,2523.2,0.39661]
[1729701329562,4.56209992,2523.3,2523.2,0.39661]
[1729701329751,3.5675,2523.4,2522.9,3.81]
[1729701329964,3.5675,2523.4,2523.3,0.3966]
[1729701330257,3.2078,2523.7,2523.1,3.81]
[1729701330455,0.39658,2523.5,2523.3,0.39659]
[1729701330955,8.07017036,2523.6,2523.0,4.19942]
[1729701331156,0.39661,2523.3,2523.1,0.39662]
[1729701331358,8.07017036,2523.6,2523.0,3.2078]
[1729701331359,0.39663,2523.1,2523.0,3.2078]
[1729701331663,4.49840389,2523.2,2523.1,0.39663]
[1729701331862,0.39659,2523.4,2523.2,0.3966]
[1729701332062,3.6902,2523.6,2523.0,3.2078]
[1729701332360,4.45571734,2523.5,2523.4,0.39657]
[1729701332759,4.08675,2523.6,2523.5,0.39657]
[1729701332960,7.6526,2523.6,2523.1,3.81]
[1729701333166,0.39659,2523.4,2523.3,0.39659]
[1729701333460,0.39659,2523.4,2523.1,0.39662]
[1729701333461,0.39662,2523.2,2523.1,0.39662]
[1729701333855,4.21763173,2523.4,2523.1,0.39662]
[1729701334052,0.39661,2523.3,2523.2,0.39661]
[1729701334363,0.39661,2523.3,2523.1,0.39662]
[1729701334562,0.39665,2523.1,2522.9,0.39666]
[1729701334758,0.39665,2523.0,2522.9,0.39666]
[1729701334952,8.36300228,2523.3,2522.7,44.0078]
[1729701335161,8.36300228,2523.3,2522.4,3.2078]
[1729701335162,1.8522,2522.9,2522.4,3.2078]
[1729701335356,1.7655,2522.8,2522.7,0.39669]
[1729701335556,1.84341251,2522.8,2522.7,0.39669]
[1729701335954,0.07791251,2522.8,2522.7,0.39669]
[1729701336354,1.8522,2522.9,2522.5,3.81]
[1729701336355,3.2078,2523.0,2522.9,0.39666]
[1729701336960,3.60445,2523.0,2522.9,0.39666]
[1729701337264,3.2078,2523.0,2522.9,0.39666]
[1729701338359,1.7655,2523.2,2522.8,3.81]
[1729701338563,1.8522,2523.3,2523.2,0.39661]
[1729701338861,3.60436,2523.6,2523.5,0.39657]
[1729701339063,0.39659,2523.4,2523.3,0.39658]
[1729701339364,0.39658,2523.5,2523.4,0.39656]
[1729701339759,4.14440504,2523.5,2523.0,8.00942]
[1729701339966,4.54099504,2523.5,2523.4,0.39658]
[1729701340160,0.39659,2523.5,2523.4,0.39658]
[1729701340358,4.54099504,2523.5,2523.4,0.39658]
[1729701340665,0.39661,2523.3,2523.2,0.3966]
[1729701341066,4.30297563,2523.3,2523.2,0.3966]
[1729701341263,4.69957563,2523.3,2523.2,0.3966]
[1729701341563,4.33810504,2523.5,2523.0,0.99162]
[1729701341758,3.6214,2523.7,2523.1,3.81]
[1729701341965,4.01795,2523.7,2523.6,0.39655]
[1729701342169,4.33810504,2523.6,2523.1,4.80158]
[1729701342360,0.39656,2523.6,2523.5,0.39657]
[1729701342965,4.01795,2523.7,2523.6,0.39655]
[1729701343462,4.27565902,2523.6,2523.1,4.80158]
[1729701343665,11.85945902,2523.7,2523.6,0.39655]
[1729701343666,8.29359902,2523.7,2523.6,0.39655]
[1729701343966,4.01794,2523.7,2523.6,0.39655]
[1729701344159,3.2078,2523.9,2523.3,3.81]
[1729701344364,3.2078,2523.9,2523.3,3.1]
[1729701344560,4.25167919,2523.8,2523.3,3.1]
[1729701344864,4.64821919,2523.8,2523.7,0.39654]
[1729701345360,4.64821919,2523.8,2523.5,40.8]
[1729701345361,8.21407919,2523.8,2523.5,40.8]
[1729701345670,8.21407919,2523.8,2523.5,0.39657]
[1729701345671,0.39655,2523.6,2523.5,0.39657]
[1729701346063,0.39655,2523.7,2523.6,0.39655]
[1729701346470,4.88477823,2523.7,2523.6,0.39655]
[1729701346769,4.88477823,2523.7,2523.3,4.0915]
[1729701346770,4.48822823,2523.7,2523.5,3.1]
[1729701346967,3.2078,2523.9,2523.8,0.39652]
[1729701347360,7.69602823,2523.9,2523.8,0.39652]
[1729701347960,8.09252823,2523.9,2523.8,0.39652]
[1729701348165,4.48822823,2523.9,2523.8,0.39652]
[1729701348873,4.18368,2524.1,2524.0,0.39649]
[1729701349172,1.8861,2524.1,2524.0,0.39649]
[1729701349676,4.9668,2524.5,2523.9,3.1]
[1729701349971,0.39651,2524.0,2523.9,0.3965]
[1729701350274,0.39645,2524.3,2523.9,3.1]
[1729701350575,0.39645,2524.3,2524.1,0.39646]
[1729701350767,0.39646,2524.2,2524.1,0.39646]
[1729701350967,1.759,2524.5,2523.8,0.99131]